[Event "GCT Superbet Romania 2022"]
[Site "Bucharest"]
[Date "2022.05.06"]
[Round "2.2"]
[White "Firouzja, Alireza"]
[Black "Nepomniachtchi, Ian"]
[Result "0-1"]
[ECO "C24"]
[WhiteElo "2804"]
[BlackElo "2773"]
[Annotator "TA RC"]
[PlyCount "110"]
[EventDate "2022.05.05"]
[EventType "tourn"]
[EventCountry "ROU"]
[SourceTitle "playchess.com"]
[Source "ChessBase"]
[SourceQuality "1"]
[TimeControl "40/5400+30:1800+30"]

{[%evp 9,110,15,18,30,19,24,10,19,28,21,20,7,25,12,31,9,9,14,19,9,12,0,0,14,5,0,0,0,-11,-16,0,0,0,0,0,0,0,0,68,0,95,85,79,88,73,49,58,0,0,0,92,-17,0,-35,-39,-20,0,-39,-20,-16,-34,-20,-24,-24,55,16,45,37,29,-83,-37,-133,-123,-180,-164,-206,-146,-137,-106,-96,-41,-262,-267,-285,-285,-265,-274,-272,-245,-265,-257,-345,-306,-604,-602,-995,-961,-1172,-1164,-29980,-29981,-6498,-1186]} 1. e4 {[%emt 0:00:02]} e5 {[%emt 0:00:12]} 2. Bc4 {[%emt 0:00:07]} Nf6 {[%emt 0:00:08]} 3. d3 {[%emt 0:00:05]} c6 {[%emt 0:00:06]} 4. Nf3 {[%emt 0:00:08]} d5 {[%emt 0:00:09]} 5. Bb3 {[%emt 0:00:10]} a5 {[%emt 0:00:06] Strongly threatening ...a4.} 6. a4 {[%emt 0:00:23] C24: Bishop's Opening: 2...Nf6.} (6. Nxe5 $2 a4 7. Bxa4 Rxa4 $19) 6... Bb4+ {[%emt 0:00:19]} 7. c3 {[%emt 0:00:12]} Bd6 {[%emt 0:00:41]} 8. exd5 {[%emt 0:00:12] The position is equal.} cxd5 {[%emt 0:00:00]} 9. Bg5 {[%emt 0:00:08]} Be6 {[%emt 0:00:15]} 10. Na3 {[%emt 0:00:10]} Nbd7 {[%emt 0:00:14]} 11. Nb5 {[%emt 0:00:11]} Bb8 {[%emt 0:00:11]} 12. d4 {[%emt 0:00:15] White wants to play dxe5.} e4 {[%emt 0:01:41]} 13. Nd2 {[%emt 0:00:31]} O-O {[%emt 0:00:16]} 14. Nf1 {[%emt 0:05:47]} h6 {[%emt 0:08:11]} 15. Bh4 {[%emt 0:00:16]} Bf4 {[%emt 0:05:10] [#]} 16. h3 $146 {[%emt 0:13:51]} ({Predecessor:} 16. Bg3 Bxg3 17. fxg3 Nb6 18. Ne3 Ne8 19. O-O f5 20. Qh5 Kh7 21. Rf2 g5 22. Raf1 {½-½ (57) Oratovsky,M (2462)-Postny,E (2623) Israel 2019}) 16... Re8 {[%emt 0:06:04]} 17. g3 {[%emt 0:06:21]} Bb8 {[%emt 0:03:33]} 18. g4 {[%emt 0:00:30]} Nf8 {[%emt 0:14:26]} 19. Ne3 {[%emt 0:05:50]} Ng6 {[%emt 0:08:29]} 20. Bxf6 {[%emt 0:06:12]} Qxf6 {[%emt 0:00:39]} 21. Bxd5 {[%emt 0:06:49]} (21. Nxd5 $2 Bxd5 22. Bxd5 Nf4 23. Bxf7+ (23. Bc4 $2 e3 $19) 23... Qxf7 $19) 21... Bxd5 {[%emt 0:09:40]} 22. Nxd5 {[%emt 0:00:08]} Qg5 {[%emt 0:01:01]} 23. c4 {[%emt 0:09:45]} Bf4 {[%emt 0:09:45]} (23... Nf4 $11) 24. Qb3 {[%emt 0:18:29]} (24. Qe2 $14) 24... h5 {[%emt 0:06:26]} (24... Nh4 $11 25. Kf1 Nf3) 25. Ne3 $1 $16 {[%emt 0:03:28]} Qh4 {[%emt 0:01:56]} 26. gxh5 {[%emt 0:05:28]} Qxh5 {[%emt 0:00:52]} 27. Qd1 {[%emt 0:01:54]} Qh6 {[%emt 0:03:19]} 28. Nf5 {[%emt 0:01:22]} (28. Qe2 $1 $14) 28... Qh7 $1 $11 {[%emt 0:01:23]} 29. Qg4 {[%emt 0:01:04]} Ra6 {[%emt 0:04:38] [#]} (29... e3 $1 $11) 30. Kd1 {[%emt 0:02:45]} (30. h4 $1 $16) 30... Rf6 $1 {[%emt 0:00:54][%cal Og6h4][%mdl 1024] Black has compensation.} 31. Re1 {[%emt 0:02:20] [#]} Nf8 $1 {[%emt 0:02:36]} 32. Ne3 {[%emt 0:01:22] Nd5 is the strong threat.} Bb8 {[%emt 0:02:10]} 33. Qe2 {[%emt 0:04:32]} Qh4 {[%emt 0:02:54]} 34. Rf1 {[%emt 0:01:11]} Rf3 {[%emt 0:00:19]} 35. Kc2 {[%emt 0:00:51]} Ne6 {[%emt 0:00:51]} 36. Nd5 $1 {[%emt 0:00:43]} Ng5 {[%emt 0:01:52]} (36... Rxh3 $11 37. Kb1 Nf4 38. Nxf4 Bxf4) 37. Rae1 {[%emt 0:00:57]} Re6 {[%emt 0:01:04]} 38. Ndc3 {[%emt 0:03:19] Pair of Knights!} Ref6 {[%emt 0:02:29][%cal Rf3f2]} (38... Qh7 39. d5 Re5 40. d6 $16) 39. Nd1 {[%emt 0:00:41]} (39. Kb1 $11) 39... R3f4 {[%emt 0:02:26] Black is much more active. The white rooks are badly placed.} (39... Rxh3 $17 {Threatens to win with ...Bf4.} 40. c5 Nf3 41. Qxe4 Nxe1+ 42. Rxe1 Qxe4+ 43. Rxe4 Kf8) 40. Qe3 {[%emt 0:00:00]} (40. c5 $15) 40... Nf3 $17 {[%emt 0:00:00]} 41. d5 {[%emt 0:06:57]} (41. Kb1 $17) 41... Be5 {[%emt 0:12:02]} ({Not} 41... Nxe1+ 42. Rxe1 Rh6 43. Nbc3 $17) (41... Qxh3 42. Kb1 $15) 42. c5 {[%emt 0:08:04][%cal Oc2b1]} Nxe1+ {[%emt 0:08:19]} 43. Rxe1 {[%emt 0:02:37]} Rxf2+ {[%emt 0:00:56]} 44. Nxf2 {[%emt 0:00:54]} Rf3 {[%emt 0:02:21]} ({Much weaker is} 44... Qxf2+ $6 45. Re2 Qf1 46. Qxe4 $11) 45. Nxe4 $2 {[%emt 0:03:11] This move loses the game for White.} (45. Qxe4 $15 Rxf2+ 46. Kd1 Qxh3 47. Re2 Qb3+ 48. Ke1 Rxe2+ 49. Kxe2 Qxb2+ 50. Kd1) 45... Rxe3 $19 {[%emt 0:00:51]} 46. Rxe3 {[%emt 0:00:05]} f5 {[%emt 0:02:25]} 47. Nec3 {[%emt 0:00:56]} Bxc3 {[%emt 0:00:06]} 48. Nxc3 {[%emt 0:04:07][%mdl 4096] Endgame [#] KQ-KRN} Qf2+ $1 {[%emt 0:00:34]} 49. Kd3 {[%emt 0:01:25]} f4 {[%emt 0:00:41][%cal Bf5f4,Bf4f3,Bf3f2][%mdl 32]} 50. Re4 {[%emt 0:01:45]} Qg3+ {[%emt 0:01:28]} ({And not} 50... Qxc5 51. Rxf4 Qd6 52. Rf3 $15) 51. Kd2 $2 {[%emt 0:03:39]} (51. Kc2 Qxh3 52. Rd4) 51... f3 {[%emt 0:00:49] Hoping for ...f2.} 52. d6 {[%emt 0:03:13]} Qg2+ {[%emt 0:00:49][%mdl 64] Skewer} 53. Ne2 {[%emt 0:00:36]} f2 {[%emt 0:00:43]} 54. Re8+ {[%emt 0:01:00]} Kf7 {[%emt 0:00:30]} 55. Re7+ {[%emt 0:00:07]} Kf6 {[%emt 0:00:47] Weighted Error Value: White=0.52/Black=0.13 (very precise)} (55... Kf8 $142 56. Nf4 Qg5) 0-1

[Event "GCT Superbet Romania 2022"]
[Site "Bucharest"]
[Date "2022.05.06"]
[Round "2.3"]
[White "Dominguez Perez, Leinier"]
[Black "Caruana, Fabiano"]
[Result "1/2-1/2"]
[ECO "B33"]
[WhiteElo "2753"]
[BlackElo "2786"]
[Annotator "TA"]
[PlyCount "94"]
[EventDate "2022.05.05"]
[EventType "tourn"]
[EventCountry "ROU"]
[SourceTitle "playchess.com"]
[Source "ChessBase"]
[SourceQuality "1"]
[TimeControl "40/5400+30:1800+30"]

{[%evp 26,94,29,3,26,28,26,14,20,15,11,18,14,3,24,26,31,27,19,22,19,19,29,29,22,22,24,27,26,32,50,22,22,23,26,29,32,21,28,21,46,24,29,0,6,18,16,0,14,3,13,13,16,13,16,18,22,0,0,0,0,0,0,0,0,0,0,0,0,0,0]} 1. e4 {[%emt 0:00:03]} c5 {[%emt 0:00:04]} 2. Nf3 {[%emt 0:00:06][%cal Bg1f3,Bf3d4,Bd4b5,Bb5a3,Ba3c2,Bc2b4][%mdl 32]} e6 {[%emt 0:00:04]} 3. d4 {[%emt 0:00:04]} cxd4 {[%emt 0:00:05]} 4. Nxd4 {[%emt 0:00:05]} Nf6 {[%emt 0:00:06]} 5. Nc3 {[%emt 0:00:09]} Nc6 {[%emt 0:00:04]} 6. Ndb5 {[%emt 0:01:52]} d6 {[%emt 0:02:12]} 7. Bf4 {[%emt 0:00:07]} e5 {[%emt 0:00:04]} 8. Bg5 {[%emt 0:00:08]} a6 {[%emt 0:00:09]} 9. Na3 {[%emt 0:00:07]} b5 {[%emt 0:00:04]} 10. Nd5 {[%emt 0:00:07]} Be7 {[%emt 0:00:08]} 11. Bxf6 {[%emt 0:02:00]} Bxf6 {[%emt 0:00:07]} 12. c3 {[%emt 0:00:55]} Rb8 {[%emt 0:00:39]} 13. Nc2 {[%emt 0:00:23]} O-O {[%emt 0:00:32]} 14. a3 {[%emt 0:17:56][%cal Oh2h4]} (14. h4 $5) 14... g6 {[%emt 0:06:29] B33: Sicilian: Pelikan and Sveshnikov Variations.} 15. Ncb4 {[%emt 0:09:46] Pair of Knights!} Bb7 {[%emt 0:03:03]} 16. Be2 {[%emt 0:06:16]} Bg5 {[%emt 0:18:13] [#]} 17. O-O $146 {[%emt 0:03:40]} (17. Nxc6 Bxc6 18. Qb3 Kg7 19. O-O f5 20. Bf3 Rb7 21. exf5 gxf5 22. Nf4 Bxf4 23. Bxc6 Rbf7 24. a4) ({Predecessor:} 17. Nxc6 Bxc6 18. Qb3 Kg7 19. O-O f5 20. Bf3 Rb7 21. exf5 gxf5 22. Nf4 Bxf4 23. Bxc6 Rbf7 24. a4 {1-0 (35) Ehmann,T (2322)-Zimmer,R (2091) Untergrombach 2020}) 17... Ne7 {[%emt 0:08:38][%cal Bc6e7,Be7c8,Bc8b6,Bb6a4][%mdl 32]} 18. Qd3 {[%emt 0:13:36]} Nc8 {[%emt 0:14:15]} 19. Rfd1 {[%emt 0:08:46]} a5 {[%emt 0:02:25]} 20. Nc2 {[%emt 0:00:06]} Nb6 {[%emt 0:00:56]} 21. Nce3 {[%emt 0:14:18]} (21. Qxb5 Bxd5 22. exd5 Nd7) ({Stronger than} 21. Qxb5 Bxd5 22. exd5 Nd7 $17) 21... Na4 {[%emt 0:07:30]} 22. Qc2 {[%emt 0:00:02]} Bxe3 {[%emt 0:02:53]} 23. Nxe3 {[%emt 0:02:35]} Nc5 {[%emt 0:01:20]} 24. Bd3 {[%emt 0:02:02]} a4 {[%emt 0:03:58]} 25. f3 {[%emt 0:00:17]} Bc8 {[%emt 0:06:00]} 26. Qf2 {[%emt 0:01:55]} Be6 {[%emt 0:07:07]} 27. Bc2 {[%emt 0:00:10]} Qe7 {[%emt 0:01:54]} 28. Rd2 {[%emt 0:03:48]} (28. Nd5 $5 {[%cal Rd5e7]} Qd8 29. f4 $11) 28... Nb3 {[%emt 0:04:42]} 29. Bxb3 {[%emt 0:00:02]} Bxb3 {[%emt 0:00:05]} 30. Re1 {[%emt 0:00:36]} Qe6 {[%emt 0:02:37]} 31. f4 {[%emt 0:04:58]} exf4 $1 {[%emt 0:01:14]} 32. Qxf4 {[%emt 0:00:02]} Qe5 {[%emt 0:02:20]} 33. Qh4 {[%emt 0:00:45] White wants to play Ng4.} h5 {[%emt 0:00:54] Prevents Ng4.} 34. Rd4 {[%emt 0:07:33]} (34. Nd5 Kg7 35. Rf1 f6 36. Nf4) (34. Nd5 {keeps more tension.} Kg7 35. Rf1 f6 36. Rd4) 34... Rbe8 {[%emt 0:01:10] The position is equal.} 35. Rf1 {[%emt 0:00:28]} f5 {[%emt 0:02:57][%cal Rf5e4] Against g4} 36. Rf4 {[%emt 0:02:15]} Rf7 {[%emt 0:01:48]} 37. Qg5 {[%emt 0:00:30][%csl LRf5,LRg6]} Kh7 {[%emt 0:00:42]} 38. h4 {[%emt 0:00:30]} (38. Nxf5 Rxf5 39. Rxf5 gxf5 40. Qxh5+ Kg7 41. Qg5+ Kf7 42. Qh5+ Kg7 43. Qg5+ Kf7 44. Qh5+ Kg7) ({Reject} 38. Nxf5 Rxf5 39. Rxf5 gxf5 40. Qxh5+ Kg7 41. Qg5+ Kf7 42. Qh5+ Kg7 43. Qg5+ Kf7 44. Qh5+ Kg7 $17) 38... fxe4 {[%emt 0:01:16]} (38... Ba2 39. Rf3 f4 40. Nd5 Bxd5 41. Qxe5 Rxe5 42. exd5 g5) 39. Rxf7+ {[%emt 0:00:30]} Bxf7 {[%emt 0:00:05]} 40. Qxe5 {[%emt 0:00:00]} dxe5 $11 {[%emt 0:00:00][%mdl 4096] Endgame KRB-KRN} 41. Rd7 {[%emt 0:16:54]} Kg7 {[%emt 0:07:15]} 42. Kf2 {[%emt 0:00:24]} Kf6 {[%emt 0:07:12]} 43. Rd6+ {[%emt 0:04:59]} Re6 {[%emt 0:05:01]} 44. Nd5+ {[%emt 0:01:13]} Kf5 {[%emt 0:01:13]} 45. Ne3+ {[%emt 0:04:54]} Kf6 $1 {[%emt 0:00:04]} 46. Nd5+ {[%emt 0:00:24]} Kf5 {[%emt 0:00:06]} 47. Ne3+ {[%emt 0:00:30]} Kf6 $1 {[%emt 0:14:20] Weighted Error Value: White=0.07 (flawless) /Black=0.04 (flawless)} 1/2-1/2

[Event "GCT Superbet Romania 2022"]
[Site "Bucharest"]
[Date "2022.05.06"]
[Round "2.4"]
[White "Mamedyarov, Shakhriyar"]
[Black "Rapport, Richard"]
[Result "1/2-1/2"]
[ECO "C10"]
[WhiteElo "2770"]
[BlackElo "2776"]
[Annotator "TA"]
[PlyCount "73"]
[EventDate "2022.05.05"]
[EventType "tourn"]
[EventCountry "ROU"]
[SourceTitle "playchess.com"]
[Source "ChessBase"]
[SourceQuality "1"]
[TimeControl "40/5400+30:1800+30"]

{[%evp 9,73,58,40,43,61,61,61,49,50,56,51,47,53,26,70,8,29,33,39,45,38,25,29,22,31,15,22,0,0,0,0,0,0,0,0,0,0,0,0,0,4,0,0,0,0,0,0,0,0,0,0,0,0,0,0,0,0,0,0,0,0,0,0,0,0,0]} 1. e4 {[%emt 0:00:06]} e6 {[%emt 0:02:07]} 2. d4 {[%emt 0:00:12]} d5 {[%emt 0:00:07]} 3. Nc3 {[%emt 0:00:13]} Nc6 {[%emt 0:04:15]} 4. e5 {[%emt 0:03:14]} f6 {[%emt 0:01:58]} 5. Bb5 {[%emt 0:00:46]} Qd7 {[%emt 0:00:31]} 6. Nf3 {[%emt 0:08:08] C10: French with 3 Nc3: Unusual Black 3rd moves and 3...dxe4.} a6 {[%emt 0:01:11]} 7. Bxc6 {[%emt 0:01:14]} Qxc6 {[%emt 0:00:04]} 8. O-O {[%emt 0:01:35] [#] White is slightly better.} Ne7 $146 {[%emt 0:03:23]} (8... Bd7 9. Re1 O-O-O 10. Ne2 h6 11. b3 f5 12. Qd3 Be8 13. c4 dxc4 14. bxc4 Bc5) ({Predecessor:} 8... Bd7 9. Re1 O-O-O 10. Ne2 h6 11. b3 f5 12. Qd3 Be8 13. c4 dxc4 14. bxc4 Bc5 {1-0 (34) Tari,A (2635)-Rendle,T (2361) Daventry 2020}) 9. exf6 {[%emt 0:05:27]} gxf6 {[%emt 0:00:41]} 10. Nh4 {[%emt 0:00:07]} h5 {[%emt 0:11:31]} 11. Qf3 {[%emt 0:03:46]} Bg7 {[%emt 0:00:54]} 12. b3 {[%emt 0:05:05] White is more active.} (12. Re1 $14) 12... e5 $11 {[%emt 0:12:41]} 13. Ba3 $1 {[%emt 0:01:29]} Bg4 {[%emt 0:03:55]} 14. Qg3 {[%emt 0:05:05] [#] Hoping for Bxe7.} Rg8 $1 {[%emt 0:02:24]} 15. Bxe7 {[%emt 0:08:02]} Kxe7 {[%emt 0:00:52]} 16. Rae1 {[%emt 0:00:05] White wants to play Qd3.} e4 {[%emt 0:03:53]} 17. Na4 {[%emt 0:09:18] aiming for f3.} (17. Qe3 Be6 18. Ne2) 17... f5 $1 {[%emt 0:13:01] [#] Strongly threatening ...f4. The position is equal.} 18. f3 {[%emt 0:08:25]} (18. h3 $5 {[%cal Rh3g4]} f4 19. Qh2 $11 (19. Qxf4 Raf8 $15)) 18... Bxd4+ {[%emt 0:01:05]} 19. Kh1 {[%emt 0:00:29]} f4 $1 {[%emt 0:00:12]} 20. Qxf4 {[%emt 0:01:45]} Raf8 {[%emt 0:01:00]} 21. Qd2 {[%emt 0:02:52] Dancing on a razor blade.} Bf6 {[%emt 0:00:55] This bishop pair is nice.} (21... Qf6 22. c3) (21... Qf6 $2 22. c3 $18) 22. fxe4 {[%emt 0:08:07]} dxe4 {[%emt 0:01:15]} 23. Rxe4+ {[%emt 0:14:16]} Qxe4 {[%emt 0:01:00]} 24. Re1 $1 {[%emt 0:00:03]} Qxe1+ {[%emt 0:00:26]} 25. Qxe1+ {[%emt 0:00:04]} Kd8 {[%emt 0:02:47]} 26. h3 $1 {[%emt 0:01:24]} Bxh3 {[%emt 0:22:44]} 27. gxh3 {[%emt 0:00:54]} Bd4 $1 {[%emt 0:00:27]} 28. Qd1 {[%emt 0:03:45][%csl LRd4,LRh5]} Rg1+ {[%emt 0:00:13]} 29. Qxg1 {[%emt 0:00:04]} Bxg1 {[%emt 0:00:04]} 30. Kxg1 {[%emt 0:00:02]} Rf4 $1 {[%emt 0:00:13]} 31. Ng2 {[%emt 0:00:09]} Rf3 {[%emt 0:00:32]} 32. h4 {[%emt 0:00:06]} b6 {[%emt 0:02:11]} 33. Nb2 {[%emt 0:00:38] Threatens to win with Nd3.} Rc3 {[%emt 0:00:27]} 34. Ne1 {[%emt 0:00:08]} Rh3 {[%emt 0:00:17]} 35. Ng2 {[%emt 0:00:07]} Rc3 {[%emt 0:00:13]} 36. Ne1 {[%emt 0:00:04]} Rh3 {[%emt 0:00:04]} 37. Ng2 {[%emt 0:00:02] Weighted Error Value: White=0.05 (flawless) /Black=0.01 (flawless)} 1/2-1/2

[Event "GCT Superbet Romania 2022"]
[Site "Bucharest"]
[Date "2022.05.06"]
[Round "2.5"]
[White "Deac, Bogdan-Daniel"]
[Black "Aronian, Levon"]
[Result "1/2-1/2"]
[ECO "D27"]
[WhiteElo "2671"]
[BlackElo "2765"]
[Annotator "TA"]
[PlyCount "105"]
[EventDate "2022.05.05"]
[EventType "tourn"]
[EventCountry "ROU"]
[SourceTitle "playchess.com"]
[Source "ChessBase"]
[SourceQuality "1"]
[TimeControl "40/5400+30:1800+30"]

{[%evp 16,105,24,35,31,22,22,22,28,25,26,32,14,0,10,0,0,0,0,0,0,0,0,0,0,0,0,0,0,0,0,0,0,0,0,-21,-15,-18,-25,-12,-10,-27,-21,-26,-22,-23,-29,-36,-36,-45,-46,-74,-80,-81,-12,-29,-34,-45,-45,-45,0,-6,-5,-9,0,0,8,0,0,0,0,0,0,0,0,0,0,0,0,0,0,0,0,0,0,0,0,0,0,0,0,0]} 1. d4 {[%emt 0:00:02]} d5 {[%emt 0:00:05]} 2. Nf3 {[%emt 0:00:14]} Nf6 {[%emt 0:00:08]} 3. c4 {[%emt 0:00:07]} dxc4 {[%emt 0:00:05]} 4. e3 {[%emt 0:01:03]} e6 {[%emt 0:00:07]} 5. Bxc4 {[%emt 0:00:05]} c5 {[%emt 0:00:05]} 6. O-O {[%emt 0:00:10]} a6 {[%emt 0:00:06]} 7. b3 {[%emt 0:03:01]} Nc6 {[%emt 0:01:44]} 8. Bb2 {[%emt 0:01:10]} cxd4 {[%emt 0:00:07]} 9. Nxd4 {[%emt 0:00:43]} Nxd4 {[%emt 0:00:07] D27: Queen's Gambit Accepted: Classical main line: 7 e4!? and 7 a4.} 10. Bxd4 {[%emt 0:01:48]} Bd7 {[%emt 0:00:07][%cal Bc8d7,Bd7c6,Bc6e4][%mdl 32]} 11. Nd2 {[%emt 0:02:14][%cal Bb1d2,Bd2f3,Bf3g5][%mdl 32]} Bc6 {[%emt 0:00:07]} 12. Nf3 {[%emt 0:05:28] [#]} Be4 $146 {[%emt 0:02:45]} (12... Be7 13. Ne5 Bd5 14. Bd3 O-O 15. Qe2 Rc8 16. Rfd1 Qa5 17. e4 Bc6 18. Nc4 Qh5) ({Predecessor:} 12... Be7 13. Ne5 Bd5 14. Bd3 O-O 15. Qe2 Rc8 16. Rfd1 Qa5 17. e4 Bc6 18. Nc4 Qh5 {0-1 (42) Salinas Herrera,P (2521)-Tanenbaum,Z (2148) Chess.com INT 2022}) 13. Ng5 {[%emt 0:13:11] [#] Threatens to win with Bxf6.} Bc6 $1 {[%emt 0:00:17]} 14. Qe2 {[%emt 0:08:54]} Qa5 {[%emt 0:04:55]} 15. f4 {[%emt 0:06:38][%cal Of4f5]} Be7 {[%emt 0:09:13]} 16. Rad1 {[%emt 0:16:50][%cal Of4f5]} h6 {[%emt 0:05:09]} 17. Nf3 {[%emt 0:04:13]} O-O {[%emt 0:00:17]} 18. Ne5 {[%emt 0:00:11]} Be4 {[%emt 0:01:40]} 19. Bd3 {[%emt 0:09:29]} Bxd3 {[%emt 0:02:15]} 20. Rxd3 {[%emt 0:01:46]} Rac8 {[%emt 0:00:13]} 21. Nc4 {[%emt 0:06:47]} Qh5 {[%emt 0:01:53]} 22. Qxh5 {[%emt 0:06:19]} Nxh5 {[%emt 0:00:22]} 23. g4 {[%emt 0:01:18]} Nf6 {[%emt 0:00:30]} 24. Bxf6 {[%emt 0:00:16]} Bxf6 {[%emt 0:00:53]} 25. a4 {[%emt 0:08:29]} b5 {[%emt 0:02:36]} 26. axb5 {[%emt 0:00:12]} axb5 {[%emt 0:00:05]} 27. Na3 {[%emt 0:01:53]} Rb8 {[%emt 0:00:25]} 28. Rf2 {[%emt 0:01:21]} Rb6 {[%emt 0:02:47]} 29. Rfd2 {[%emt 0:00:27]} Ra8 {[%emt 0:03:42]} 30. Nc2 {[%emt 0:00:08]} Rc6 {[%emt 0:00:07]} 31. Nd4 {[%emt 0:00:50]} Rc1+ {[%emt 0:08:05]} 32. Kg2 {[%emt 0:00:40]} b4 {[%emt 0:00:36]} 33. Rd1 {[%emt 0:00:29]} Ra2+ {[%emt 0:01:42]} 34. Kg3 {[%emt 0:00:27] [#]} Rc5 {[%emt 0:02:57]} (34... Rxd1 35. Rxd1 Rb2) (34... Rxd1 $1 $17 35. Rxd1 Rb2) 35. h4 {[%emt 0:00:32]} e5 {[%emt 0:03:03]} 36. fxe5 {[%emt 0:00:28]} Bxe5+ {[%emt 0:00:50]} 37. Kf3 {[%emt 0:00:26]} Bf6 {[%emt 0:04:51]} (37... Rh2 38. h5 Bf6) 38. h5 {[%emt 0:00:37] The position is equal.} Rh2 {[%emt 0:03:00]} 39. Ne2 {[%emt 0:00:32]} Rg5 {[%emt 0:02:02]} 40. Nf4 {[%emt 0:00:00] Inhibits Rh3+.} Rh4 {[%emt 0:00:00]} 41. Rg1 {[%emt 0:02:30]} Be5 {[%emt 0:05:06]} 42. Rd8+ {[%emt 0:02:25]} Kh7 {[%emt 0:00:39]} 43. Rf8 {[%emt 0:01:09]} Bxf4 {[%emt 0:03:45]} 44. exf4 $11 {[%emt 0:01:03][%mdl 4096] Endgame KRR-KRR} (44. Kxf4 f6) ({But not} 44. Kxf4 f6 $15) 44... Rh3+ $1 {[%emt 0:00:34]} 45. Rg3 {[%emt 0:01:22]} Rxg3+ {[%emt 0:00:35]} 46. Kxg3 {[%emt 0:00:34] KR-KR} Rd5 {[%emt 0:00:34]} 47. Rxf7 {[%emt 0:00:41]} Rd3+ {[%emt 0:00:36]} 48. Kf2 {[%emt 0:04:53]} Rxb3 {[%emt 0:00:38]} 49. Rb7 {[%emt 0:01:10]} Rb2+ {[%emt 0:00:39]} 50. Kf3 {[%emt 0:00:45]} Rb3+ {[%emt 0:00:50]} 51. Kf2 {[%emt 0:00:40]} Rb2+ {[%emt 0:00:35]} 52. Kf3 {[%emt 0:00:43]} Rb3+ {[%emt 0:00:37]} 53. Kf2 {[%emt 0:02:22] Weighted Error Value: White=0.04 (flawless) /Black=0.06 (flawless)} 1/2-1/2

[Event "GCT Superbet Romania 2022"]
[Site "Bucharest"]
[Date "2022.05.07"]
[Round "3.1"]
[White "Caruana, Fabiano"]
[Black "So, Wesley"]
[Result "1/2-1/2"]
[ECO "E05"]
[WhiteElo "2786"]
[BlackElo "2766"]
[Annotator "TA"]
[PlyCount "80"]
[EventDate "2022.05.05"]
[EventType "tourn"]
[EventCountry "ROU"]
[SourceTitle "playchess.com"]
[Source "ChessBase"]
[SourceQuality "1"]
[TimeControl "40/5400+30:1800+30"]

{[%evp 20,80,0,0,8,0,0,0,0,0,0,0,0,0,11,-6,-4,-10,0,-13,-3,-5,-10,-28,-45,-65,-94,-37,-56,-95,-95,-95,-95,-95,-95,-95,-95,-95,-95,-95,-97,-97,-83,-83,-83,-83,-83,-83,-83,-87,-26,-26,-26,-26,-31,-26,-26,-33,0,-33,0,-54,0]} 1. d4 {[%emt 0:00:04]} Nf6 {[%emt 0:00:27]} 2. c4 {[%emt 0:00:07]} e6 {[%emt 0:00:03]} 3. Nf3 {[%emt 0:00:06]} d5 {[%emt 0:00:04]} 4. g3 {[%emt 0:00:05]} Be7 {[%emt 0:01:41]} 5. Bg2 {[%emt 0:00:31]} O-O {[%emt 0:00:06]} 6. O-O {[%emt 0:00:03]} dxc4 {[%emt 0:00:03]} 7. Qa4 {[%emt 0:00:05]} a6 {[%emt 0:02:16]} 8. Qxc4 {[%emt 0:00:22]} b5 {[%emt 0:00:03]} 9. Qc2 {[%emt 0:00:06]} Bb7 {[%emt 0:00:03]} 10. Bd2 {[%emt 0:00:05]} Be4 {[%emt 0:03:22]} 11. Qc1 {[%emt 0:00:26]} c6 {[%emt 0:00:42] E05: Open Catalan: 5 Nf3 Be7.} 12. a4 {[%emt 0:00:20]} b4 {[%emt 0:11:03] Prevents Nc3.} 13. Bg5 {[%emt 0:15:19]} Bxf3 {[%emt 0:10:55] The position is equal.} 14. Bxf3 {[%emt 0:00:22]} Qxd4 {[%emt 0:00:05]} 15. Rd1 {[%emt 0:15:34]} Qa7 {[%emt 0:00:42]} 16. Nd2 {[%emt 0:01:15]} Nd5 {[%emt 0:07:22]} 17. Nc4 {[%emt 1:04:10] [#]} Bxg5 $146 {[%emt 0:14:02]} (17... Nd7 18. e4 Bxg5 19. Qxg5 N5f6 20. Rac1 a5 21. Kg2 h6 22. Qe3 Qxe3 23. Nxe3 Rfc8) ({Predecessor:} 17... Nd7 18. e4 Bxg5 19. Qxg5 N5f6 20. Rac1 a5 21. Kg2 h6 22. Qe3 Qxe3 23. Nxe3 Rfc8 {½-½ (30) Gupta,A (2634)-Rambaldi,F (2541) Reykjavik 2016}) 18. Qxg5 {[%emt 0:00:00]} h6 {[%emt 0:00:53]} 19. Qd2 {[%emt 0:00:00]} a5 {[%emt 0:06:57]} 20. e4 {[%emt 0:00:00]} Nb6 {[%emt 0:00:56]} 21. Nxb6 {[%emt 0:00:00]} (21. Ne5 Qc7 22. Qd6 Ra7 23. b3) 21... Qxb6 {[%emt 0:00:14]} 22. e5 {[%emt 0:00:00]} Ra7 $1 {[%emt 0:01:24]} 23. Qf4 {[%emt 0:00:00]} Rd7 {[%emt 0:03:34]} 24. Rd6 {[%emt 0:00:00]} Rxd6 {[%emt 0:10:30]} 25. exd6 {[%emt 0:00:00]} c5 {[%emt 0:00:04]} 26. Rd1 {[%emt 0:00:00]} Rd8 {[%emt 0:07:51]} 27. b3 {[%emt 0:00:00]} Nc6 {[%emt 0:07:06]} 28. Bxc6 {[%emt 0:00:00]} Qxc6 $17 {[%emt 0:00:03][%mdl 4096] Endgame KQR-KQR} 29. Rd2 {[%emt 0:00:00]} f6 {[%emt 0:04:08]} 30. h4 {[%emt 0:00:10]} h5 {[%emt 0:01:41]} 31. Rd1 {[%emt 0:03:25]} Kf7 {[%emt 0:01:12]} 32. Rd2 {[%emt 0:02:07]} Kf8 {[%emt 0:01:42] [#] Strongly threatening ...e5.} 33. Rd1 {[%emt 0:00:05]} Rd7 {[%emt 0:02:37]} 34. Qd2 {[%emt 0:01:18]} Qf3 {[%emt 0:01:09]} (34... c4 35. bxc4 Qxc4) (34... c4 $17 35. bxc4 Qxc4) 35. Qc2 $11 {[%emt 0:00:49]} Kf7 {[%emt 0:01:06]} 36. Rd2 {[%emt 0:01:00]} Qc6 {[%emt 0:00:45]} 37. Qd3 {[%emt 0:00:32]} Kf8 {[%emt 0:01:08]} 38. Rd1 {[%emt 0:00:07]} Kf7 {[%emt 0:00:46]} 39. Rd2 {[%emt 0:00:06]} Kf8 {[%emt 0:00:34]} 40. Rd1 {[%emt 0:00:42]} Kf7 {[%emt 0:01:11] Weighted Error Value: White=0.05 (flawless) /Black=0.06 (flawless)} (40... Rd8) (40... Rd8 $15) 1/2-1/2